[Event "Titled Tuesday Blitz August 3 2021"]
[White "Fernandez, Michael"]
[Black "Paravyan, David"]
[WhiteFideId "5803560"]
[BlackFideId "4194985"]
[WhiteElo "2110"]
[BlackElo "2562"]
[Result "1-0"]
[Round "03"]
[TimeControl "180+1"]
[Date "2021.08.03"]
[WhiteClock "0:00:08"]
[BlackClock "0:00:01"]

1. b4 {[%clk 0:02:58]}  e6 {[%clk 0:02:59]} 2. Bb2 {[%clk 0:02:58]}  f5 {[%clk 0:02:56]} 3. e3 {[%clk 0:02:54]}  Nf6 {[%clk 0:02:57]} 4. b5 {[%clk 0:02:54]}  d5 {[%clk 0:02:55]} 5. Nf3 {[%clk 0:02:54]}  Bd6 {[%clk 0:02:55]} 6. d4 {[%clk 0:02:47]}  O-O {[%clk 0:02:55]} 7. c4 {[%clk 0:02:45]}  c5 {[%clk 0:02:50]} 8. bxc6 {[%clk 0:02:33]}  Bc5 {[%clk 0:02:51]} 9. dxc5 {[%clk 0:02:32]}  Nxc6 {[%clk 0:02:47]} 10. Be2 {[%clk 0:02:29]}  Qa5+ {[%clk 0:02:38]} 11. Nbd2 {[%clk 0:02:25]}  Qxc5 {[%clk 0:02:37]} 12. O-O {[%clk 0:02:22]}  Qe7 {[%clk 0:02:31]} 13. cxd5 {[%clk 0:02:18]}  Nxd5 {[%clk 0:02:32]} 14. Nc4 {[%clk 0:02:17]}  Bd7 {[%clk 0:02:31]} 15. Nce5 {[%clk 0:02:15]}  Rad8 {[%clk 0:02:27]} 16. Qb3 {[%clk 0:02:09]}  Na5 {[%clk 0:02:17]} 17. Qa3 {[%clk 0:02:01]}  b6 {[%clk 0:02:07]} 18. Qxe7 {[%clk 0:01:59]}  Nxe7 {[%clk 0:02:08]} 19. Ba3 {[%clk 0:01:55]}  Rfe8 {[%clk 0:02:08]} 20. Rfd1 {[%clk 0:01:52]}  Nd5 {[%clk 0:01:59]} 21. Nd4 {[%clk 0:01:43]}  Ba4 {[%clk 0:01:54]} 22. Rdc1 {[%clk 0:01:35]}  f4 {[%clk 0:01:54]} 23. Ndc6 {[%clk 0:01:18]}  Nxc6 {[%clk 0:01:51]} 24. Nxc6 {[%clk 0:01:19]}  Rc8 {[%clk 0:01:51]} 25. Nxa7 {[%clk 0:01:14]}  Ra8 {[%clk 0:01:51]} 26. Nb5 {[%clk 0:01:04]}  fxe3 {[%clk 0:01:51]} 27. Nc7 {[%clk 0:00:58]}  exf2+ {[%clk 0:01:50]} 28. Kxf2 {[%clk 0:00:47]}  Nxc7 {[%clk 0:01:48]} 29. Rxc7 {[%clk 0:00:46]}  Red8 {[%clk 0:01:42]} 30. Bf3 {[%clk 0:00:36]}  Rd2+ {[%clk 0:01:38]} 31. Kg3 {[%clk 0:00:35]}  Rad8 {[%clk 0:01:38]} 32. Rac1 {[%clk 0:00:33]}  Rxa2 {[%clk 0:01:29]} 33. Bb4 {[%clk 0:00:30]}  Be8 {[%clk 0:01:03]} 34. Bc3 {[%clk 0:00:28]}  Bf7 {[%clk 0:00:57]} 35. Be5 {[%clk 0:00:24]}  h6 {[%clk 0:00:49]} 36. Rb7 {[%clk 0:00:23]}  Ra5 {[%clk 0:00:47]} 37. Bf4 {[%clk 0:00:15]}  e5 {[%clk 0:00:45]} 38. Be3 {[%clk 0:00:15]}  e4 {[%clk 0:00:42]} 39. Rcc7 {[%clk 0:00:15]}  Bd5 {[%clk 0:00:30]} 40. Rxg7+ {[%clk 0:00:14]}  Kf8 {[%clk 0:00:31]} 41. Bxh6 {[%clk 0:00:12]}  Bxb7 {[%clk 0:00:28]} 42. Rxb7+ {[%clk 0:00:11]}  Kg8 {[%clk 0:00:29]} 43. Rg7+ {[%clk 0:00:11]}  Kh8 {[%clk 0:00:29]} 44. Bxe4 {[%clk 0:00:10]}  Rh5 {[%clk 0:00:13]} 45. Rg6 {[%clk 0:00:11]}  Re8 {[%clk 0:00:12]} 46. Bg7+ {[%clk 0:00:07]}  Kh7 {[%clk 0:00:10]} 47. Re6+ {[%clk 0:00:06]}  Kxg7 {[%clk 0:00:09]} 48. Rxe8 {[%clk 0:00:07]}  Rc5 {[%clk 0:00:08]} 49. Rb8 {[%clk 0:00:07]}  b5 {[%clk 0:00:08]} 50. Kf4 {[%clk 0:00:07]}  Kf6 {[%clk 0:00:07]} 51. Rb6+ {[%clk 0:00:07]}  Ke7 {[%clk 0:00:07]} 52. h4 {[%clk 0:00:07]}  Kd7 {[%clk 0:00:05]} 53. g4 {[%clk 0:00:08]}  Kc7 {[%clk 0:00:06]} 54. Rb7+ {[%clk 0:00:08]}  Kd6 {[%clk 0:00:06]} 55. g5 {[%clk 0:00:09]}  Rc4 {[%clk 0:00:06]} 56. h5 {[%clk 0:00:10]}  b4 {[%clk 0:00:07]} 57. h6 {[%clk 0:00:10]}  Rc8 {[%clk 0:00:07]} 58. g6 {[%clk 0:00:10]}  Ke6 {[%clk 0:00:08]} 59. g7 {[%clk 0:00:10]}  Kf6 {[%clk 0:00:07]} 60. Bd5 {[%clk 0:00:10]}  b3 {[%clk 0:00:07]} 61. Bxb3 {[%clk 0:00:09]}  Rd8 {[%clk 0:00:03]} 62. g8=Q {[%clk 0:00:10]}  Rd4+ {[%clk 0:00:04]} 63. Ke3 {[%clk 0:00:09]}  Re4+ {[%clk 0:00:04]} 64. Kd3 {[%clk 0:00:07]}  Rd4+ {[%clk 0:00:01]} 65. Kxd4 {[%clk 0:00:08]}  Kf5 {[%clk 0:00:01]} 66. Rf7# {[%clk 0:00:08]} 1-0


[Site "https://www.chess.com"]

[Event "Titled Tuesday Blitz August 3 2021"]
[White "Firat, Burak"]
[Black "Zhigalko, Sergei"]
[WhiteFideId "6305881"]
[BlackFideId "13502956"]
[WhiteElo "2531"]
[BlackElo "2662"]
[Result "1/2-1/2"]
[Round "03"]
[TimeControl "180+1"]
[Date "2021.08.03"]
[WhiteClock "0:00:10"]
[BlackClock "0:00:04"]

1. d4 {[%clk 0:03:00]}  Nf6 {[%clk 0:03:00]} 2. c4 {[%clk 0:03:01]}  e6 {[%clk 0:03:00]} 3. Nf3 {[%clk 0:03:01]}  b6 {[%clk 0:03:00]} 4. a3 {[%clk 0:02:59]}  Ba6 {[%clk 0:02:59]} 5. Qc2 {[%clk 0:02:54]}  Bb7 {[%clk 0:02:55]} 6. Nc3 {[%clk 0:02:52]}  c5 {[%clk 0:02:55]} 7. d5 {[%clk 0:02:46]}  exd5 {[%clk 0:02:55]} 8. cxd5 {[%clk 0:02:47]}  Nxd5 {[%clk 0:02:56]} 9. Nxd5 {[%clk 0:02:44]}  Bxd5 {[%clk 0:02:56]} 10. e4 {[%clk 0:02:44]}  Be6 {[%clk 0:02:57]} 11. h4 {[%clk 0:02:32]}  Nc6 {[%clk 0:02:56]} 12. Be3 {[%clk 0:02:16]}  Be7 {[%clk 0:02:46]} 13. Bb5 {[%clk 0:01:50]}  Qc7 {[%clk 0:02:45]} 14. Ng5 {[%clk 0:01:38]}  Bf6 {[%clk 0:02:39]} 15. O-O-O {[%clk 0:01:26]}  Rc8 {[%clk 0:02:17]} 16. Ba6 {[%clk 0:01:20]}  Rd8 {[%clk 0:02:11]} 17. f4 {[%clk 0:01:19]}  Bg4 {[%clk 0:02:02]} 18. e5 {[%clk 0:01:06]}  Bxg5 {[%clk 0:01:57]} 19. hxg5 {[%clk 0:01:04]}  Bxd1 {[%clk 0:01:57]} 20. Rxd1 {[%clk 0:01:03]}  d5 {[%clk 0:01:32]} 21. Bb5 {[%clk 0:00:49]}  g6 {[%clk 0:01:02]} 22. Qa4 {[%clk 0:00:47]}  Rc8 {[%clk 0:01:00]} 23. Rxd5 {[%clk 0:00:46]}  O-O {[%clk 0:01:00]} 24. Rd6 {[%clk 0:00:42]}  Nb8 {[%clk 0:00:39]} 25. Bc4 {[%clk 0:00:34]}  Rcd8 {[%clk 0:00:33]} 26. Rf6 {[%clk 0:00:32]}  Kg7 {[%clk 0:00:13]} 27. Bd2 {[%clk 0:00:24]}  Qd7 {[%clk 0:00:06]} 28. Qxd7 {[%clk 0:00:18]}  Nxd7 {[%clk 0:00:07]} 29. Rd6 {[%clk 0:00:18]}  Nb8 {[%clk 0:00:07]} 30. Bc3 {[%clk 0:00:18]}  Kg8 {[%clk 0:00:08]} 31. Rf6 {[%clk 0:00:17]}  Nd7 {[%clk 0:00:07]} 32. Rc6 {[%clk 0:00:16]}  Nb8 {[%clk 0:00:07]} 33. Rf6 {[%clk 0:00:15]}  Nd7 {[%clk 0:00:04]} 34. Rd6 {[%clk 0:00:14]}  Nb8 {[%clk 0:00:04]} 35. Rf6 {[%clk 0:00:10]} 1/2-1/2


[Site "https://www.chess.com"]

[Event "Titled Tuesday Blitz August 3 2021"]
[White "Flores Quillas, Diego Saul Rodri"]
[Black "Erdogdu, Mert"]
[WhiteFideId "3822508"]
[BlackFideId "6301495"]
[WhiteElo "2071"]
[BlackElo "2485"]
[Result "0-1"]
[Round "03"]
[TimeControl "180+1"]
[Date "2021.08.03"]
[WhiteClock "0:00:03"]
[BlackClock "0:00:41"]

1. e4 {[%clk 0:03:00]}  c5 {[%clk 0:02:58]} 2. Nf3 {[%clk 0:03:00]}  d6 {[%clk 0:02:58]} 3. d4 {[%clk 0:02:57]}  cxd4 {[%clk 0:02:58]} 4. Nxd4 {[%clk 0:02:58]}  Nf6 {[%clk 0:02:58]} 5. Nc3 {[%clk 0:02:58]}  a6 {[%clk 0:02:59]} 6. Bg5 {[%clk 0:02:58]}  e6 {[%clk 0:02:59]} 7. Qe2 {[%clk 0:02:58]}  Be7 {[%clk 0:02:54]} 8. f4 {[%clk 0:02:57]}  Qc7 {[%clk 0:02:53]} 9. O-O-O {[%clk 0:02:56]}  Nbd7 {[%clk 0:02:50]} 10. g3 {[%clk 0:02:56]}  b5 {[%clk 0:02:45]} 11. a3 {[%clk 0:01:56]}  Bb7 {[%clk 0:02:39]} 12. Bg2 {[%clk 0:01:56]}  O-O {[%clk 0:02:34]} 13. Kb1 {[%clk 0:01:39]}  Rfc8 {[%clk 0:02:33]} 14. e5 {[%clk 0:00:51]}  Bxg2 {[%clk 0:02:13]} 15. exf6 {[%clk 0:00:31]}  Bxh1 {[%clk 0:02:13]} 16. Nxe6 {[%clk 0:00:27]}  Qc4 {[%clk 0:02:02]} 17. Qxc4 {[%clk 0:00:07]}  Rxc4 {[%clk 0:01:53]} 18. fxe7 {[%clk 0:00:07]}  fxe6 {[%clk 0:01:51]} 19. Rxh1 {[%clk 0:00:07]}  Nf6 {[%clk 0:01:43]} 20. Rd1 {[%clk 0:00:06]}  d5 {[%clk 0:01:37]} 21. f5 {[%clk 0:00:06]}  Kf7 {[%clk 0:01:06]} 22. fxe6+ {[%clk 0:00:04]}  Kxe6 {[%clk 0:01:05]} 23. Bxf6 {[%clk 0:00:05]}  gxf6 {[%clk 0:01:02]} 24. Nxd5 {[%clk 0:00:04]}  Re8 {[%clk 0:00:58]} 25. b3 {[%clk 0:00:01]}  Rc5 {[%clk 0:00:55]} 26. Nf4+ {[%clk 0:00:01]}  Kxe7 {[%clk 0:00:54]} 27. Kb2 {[%clk 0:00:02]}  Kf7 {[%clk 0:00:52]} 28. Rd7+ {[%clk 0:00:02]}  Re7 {[%clk 0:00:53]} 29. Rd6 {[%clk 0:00:03]}  Rec7 {[%clk 0:00:50]} 30. c4 {[%clk 0:00:01]}  bxc4 {[%clk 0:00:50]} 31. Nd5 {[%clk 0:00:02]}  c3+ {[%clk 0:00:45]} 32. Kc2 {[%clk 0:00:02]}  R7c6 {[%clk 0:00:45]} 33. Rxc6 {[%clk 0:00:01]}  Rxc6 {[%clk 0:00:44]} 34. Nxc3 {[%clk 0:00:02]}  Ke6 {[%clk 0:00:42]} 35. b4 {[%clk 0:00:03]}  Ke5 {[%clk 0:00:41]} 36. a4 {[%clk 0:00:03]}  Kd4 {[%clk 0:00:41]} 0-1


[Site "https://www.chess.com"]

[Event "Titled Tuesday Blitz August 3 2021"]
[White "Grabinsky, Aaron"]
[Black "Rustemov, Alexander"]
[WhiteFideId "2087090"]
[BlackFideId "4119002"]
[WhiteElo "2353"]
[BlackElo "2650"]
[Result "0-1"]
[Round "03"]
[TimeControl "180+1"]
[Date "2021.08.03"]
[WhiteClock "0:00:19"]
[BlackClock "0:00:21"]

1. b3 {[%clk 0:03:00]}  d5 {[%clk 0:02:59]} 2. Bb2 {[%clk 0:03:00]}  Nf6 {[%clk 0:02:59]} 3. Nf3 {[%clk 0:03:00]}  c6 {[%clk 0:03:00]} 4. e3 {[%clk 0:03:01]}  Bf5 {[%clk 0:03:00]} 5. Be2 {[%clk 0:03:02]}  h6 {[%clk 0:02:59]} 6. d3 {[%clk 0:03:02]}  e6 {[%clk 0:03:00]} 7. Nbd2 {[%clk 0:03:02]}  Be7 {[%clk 0:02:58]} 8. O-O {[%clk 0:03:03]}  O-O {[%clk 0:02:58]} 9. a3 {[%clk 0:03:04]}  a5 {[%clk 0:02:58]} 10. c4 {[%clk 0:03:04]}  Na6 {[%clk 0:02:53]} 11. cxd5 {[%clk 0:03:04]}  exd5 {[%clk 0:02:50]} 12. Re1 {[%clk 0:03:04]}  Re8 {[%clk 0:02:48]} 13. Qc2 {[%clk 0:03:05]}  Bh7 {[%clk 0:02:35]} 14. Rec1 {[%clk 0:03:04]}  Bd6 {[%clk 0:02:32]} 15. Bd4 {[%clk 0:02:56]}  Qe7 {[%clk 0:02:30]} 16. Bb2 {[%clk 0:02:54]}  Nc7 {[%clk 0:02:20]} 17. Nf1 {[%clk 0:02:50]}  Nb5 {[%clk 0:02:19]} 18. a4 {[%clk 0:02:38]}  Nc7 {[%clk 0:02:19]} 19. Bc3 {[%clk 0:02:37]}  Bb4 {[%clk 0:02:16]} 20. Bd4 {[%clk 0:02:34]}  Na6 {[%clk 0:02:14]} 21. Qb2 {[%clk 0:02:34]}  Bd6 {[%clk 0:02:05]} 22. N1d2 {[%clk 0:02:25]}  Nb4 {[%clk 0:02:04]} 23. Qc3 {[%clk 0:02:20]}  c5 {[%clk 0:01:52]} 24. Bxc5 {[%clk 0:02:11]}  Bxc5 {[%clk 0:01:34]} 25. Qxc5 {[%clk 0:02:11]}  Bxd3 {[%clk 0:01:32]} 26. Qxe7 {[%clk 0:02:07]}  Rxe7 {[%clk 0:01:31]} 27. Bxd3 {[%clk 0:02:05]}  Nxd3 {[%clk 0:01:32]} 28. Rc3 {[%clk 0:02:06]}  Nb4 {[%clk 0:01:29]} 29. Rac1 {[%clk 0:02:04]}  Nc6 {[%clk 0:01:28]} 30. Rc5 {[%clk 0:02:01]}  Rd8 {[%clk 0:01:25]} 31. Kf1 {[%clk 0:01:50]}  Ne4 {[%clk 0:01:25]} 32. Rb5 {[%clk 0:01:46]}  Nxd2+ {[%clk 0:01:19]} 33. Nxd2 {[%clk 0:01:47]}  d4 {[%clk 0:01:19]} 34. Nc4 {[%clk 0:01:47]}  dxe3 {[%clk 0:01:17]} 35. Nxe3 {[%clk 0:01:46]}  Rd2 {[%clk 0:01:08]} 36. Rc2 {[%clk 0:01:36]}  Rd3 {[%clk 0:01:03]} 37. Rc1 {[%clk 0:01:16]}  Nd4 {[%clk 0:01:00]} 38. Rxa5 {[%clk 0:01:13]}  Nxb3 {[%clk 0:00:57]} 39. Ra8+ {[%clk 0:01:12]}  Kh7 {[%clk 0:00:58]} 40. Re1 {[%clk 0:01:09]}  Nc5 {[%clk 0:00:49]} 41. a5 {[%clk 0:01:08]}  Ra3 {[%clk 0:00:49]} 42. g3 {[%clk 0:01:04]}  Ra2 {[%clk 0:00:49]} 43. Re2 {[%clk 0:00:56]}  Ra1+ {[%clk 0:00:48]} 44. Kg2 {[%clk 0:00:57]}  Nb3 {[%clk 0:00:48]} 45. Rb2 {[%clk 0:00:50]}  Rxa5 {[%clk 0:00:46]} 46. Rb8 {[%clk 0:00:48]}  Nc5 {[%clk 0:00:44]} 47. Nc4 {[%clk 0:00:48]}  Ra6 {[%clk 0:00:41]} 48. Rd8 {[%clk 0:00:46]}  Rc6 {[%clk 0:00:37]} 49. Na5 {[%clk 0:00:43]}  Rcc7 {[%clk 0:00:36]} 50. Rb8 {[%clk 0:00:43]}  h5 {[%clk 0:00:35]} 51. h4 {[%clk 0:00:43]}  Kg6 {[%clk 0:00:35]} 52. Rb6+ {[%clk 0:00:41]}  f6 {[%clk 0:00:36]} 53. Nc4 {[%clk 0:00:41]}  Nd3 {[%clk 0:00:33]} 54. Ne3 {[%clk 0:00:36]}  Rcd7 {[%clk 0:00:28]} 55. Rb5 {[%clk 0:00:34]}  Ne5 {[%clk 0:00:26]} 56. Rc8 {[%clk 0:00:29]}  Rd2 {[%clk 0:00:25]} 57. Rbc5 {[%clk 0:00:23]}  Nd3 {[%clk 0:00:23]} 58. Rc2 {[%clk 0:00:23]}  Ne1+ {[%clk 0:00:23]} 59. Kf1 {[%clk 0:00:21]}  Nxc2 {[%clk 0:00:23]} 60. Nxc2 {[%clk 0:00:21]}  Ree2 {[%clk 0:00:23]} 61. Ne3 {[%clk 0:00:20]}  Rxf2+ {[%clk 0:00:23]} 62. Kg1 {[%clk 0:00:21]}  Rfe2 {[%clk 0:00:21]} 63. Rc3 {[%clk 0:00:18]}  Re1+ {[%clk 0:00:20]} 64. Nf1 {[%clk 0:00:18]}  Rdd1 {[%clk 0:00:20]} 65. Rf3 {[%clk 0:00:18]}  b5 {[%clk 0:00:21]} 66. Kg2 {[%clk 0:00:18]}  Rxf1 {[%clk 0:00:20]} 67. Rxf1 {[%clk 0:00:18]}  Rxf1 {[%clk 0:00:21]} 68. Kxf1 {[%clk 0:00:19]}  Kf5 {[%clk 0:00:21]} 0-1


[Site "https://www.chess.com"]

[Event "Titled Tuesday Blitz August 3 2021"]
[White "Gunina, Valentina"]
[Black "Potapova, Margarita"]
[WhiteFideId "4167570"]
[BlackFideId "14126869"]
[WhiteElo "2399"]
[BlackElo "2229"]
[Result "1-0"]
[Round "03"]
[TimeControl "180+1"]
[Date "2021.08.03"]
[WhiteClock "0:01:04"]
[BlackClock "0:00:16"]

1. d4 {[%clk 0:03:00]}  Nf6 {[%clk 0:03:00]} 2. c4 {[%clk 0:03:00]}  e6 {[%clk 0:03:00]} 3. Nf3 {[%clk 0:03:00]}  d5 {[%clk 0:03:00]} 4. Nc3 {[%clk 0:02:59]}  dxc4 {[%clk 0:03:00]} 5. e4 {[%clk 0:02:57]}  Bb4 {[%clk 0:02:59]} 6. Bxc4 {[%clk 0:02:56]}  Nxe4 {[%clk 0:02:59]} 7. O-O {[%clk 0:02:56]}  Nf6 {[%clk 0:02:57]} 8. Bg5 {[%clk 0:02:53]}  O-O {[%clk 0:02:47]} 9. Qe2 {[%clk 0:02:53]}  Be7 {[%clk 0:02:46]} 10. Rad1 {[%clk 0:02:52]}  c6 {[%clk 0:02:39]} 11. Ne5 {[%clk 0:02:50]}  Nd5 {[%clk 0:02:36]} 12. Bxe7 {[%clk 0:02:47]}  Qxe7 {[%clk 0:02:36]} 13. f4 {[%clk 0:02:34]}  Nxc3 {[%clk 0:02:26]} 14. bxc3 {[%clk 0:02:34]}  Nd7 {[%clk 0:02:27]} 15. Bd3 {[%clk 0:02:20]}  Nf6 {[%clk 0:02:02]} 16. g4 {[%clk 0:02:17]}  c5 {[%clk 0:01:44]} 17. g5 {[%clk 0:02:16]}  Nd5 {[%clk 0:01:45]} 18. Bxh7+ {[%clk 0:02:05]}  Kxh7 {[%clk 0:01:37]} 19. Qh5+ {[%clk 0:02:05]}  Kg8 {[%clk 0:01:37]} 20. Rd3 {[%clk 0:02:05]}  g6 {[%clk 0:00:41]} 21. Qh6 {[%clk 0:01:41]}  Nf6 {[%clk 0:00:41]} 22. Rh3 {[%clk 0:01:08]}  Nh5 {[%clk 0:00:41]} 23. Ng4 {[%clk 0:01:08]}  f5 {[%clk 0:00:35]} 24. Qxg6+ {[%clk 0:01:05]}  Qg7 {[%clk 0:00:31]} 25. Nh6+ {[%clk 0:01:04]}  Kh8 {[%clk 0:00:31]} 26. Qxh5 {[%clk 0:01:05]}  cxd4 {[%clk 0:00:16]} 27. Nxf5+ {[%clk 0:01:04]} 1-0


[Site "https://www.chess.com"]

[Event "Titled Tuesday Blitz August 3 2021"]
[White "Hamley, Ryan"]
[Black "Iskusnyh, Sergei"]
[WhiteFideId "30959497"]
[BlackFideId "4120027"]
[WhiteElo "2382"]
[BlackElo "2492"]
[Result "0-1"]
[Round "03"]
[TimeControl "180+1"]
[Date "2021.08.03"]
[WhiteClock "0:00:04"]
[BlackClock "0:00:13"]

1. e4 {[%clk 0:03:00]}  e6 {[%clk 0:02:59]} 2. d4 {[%clk 0:02:59]}  d5 {[%clk 0:02:59]} 3. Nd2 {[%clk 0:02:59]}  c5 {[%clk 0:02:58]} 4. exd5 {[%clk 0:02:58]}  exd5 {[%clk 0:02:58]} 5. Ngf3 {[%clk 0:02:59]}  Nc6 {[%clk 0:02:58]} 6. Bb5 {[%clk 0:02:59]}  cxd4 {[%clk 0:02:58]} 7. Nxd4 {[%clk 0:02:58]}  Bd7 {[%clk 0:02:58]} 8. Nxc6 {[%clk 0:02:54]}  bxc6 {[%clk 0:02:57]} 9. Bd3 {[%clk 0:02:54]}  Bd6 {[%clk 0:02:56]} 10. O-O {[%clk 0:02:54]}  Ne7 {[%clk 0:02:55]} 11. Re1 {[%clk 0:02:47]}  O-O {[%clk 0:02:55]} 12. b3 {[%clk 0:02:41]}  Qc7 {[%clk 0:02:49]} 13. Nf1 {[%clk 0:02:38]}  Ng6 {[%clk 0:02:26]} 14. Ng3 {[%clk 0:02:21]}  Be5 {[%clk 0:02:02]} 15. Rb1 {[%clk 0:02:20]}  Rfe8 {[%clk 0:02:01]} 16. Bd2 {[%clk 0:02:08]}  Nf4 {[%clk 0:01:55]} 17. Bf1 {[%clk 0:01:55]}  g6 {[%clk 0:01:51]} 18. Qf3 {[%clk 0:01:53]}  Ne6 {[%clk 0:01:35]} 19. c3 {[%clk 0:01:40]}  h5 {[%clk 0:01:27]} 20. h3 {[%clk 0:01:13]}  h4 {[%clk 0:01:25]} 21. Ne2 {[%clk 0:01:12]}  a5 {[%clk 0:01:11]} 22. Rbc1 {[%clk 0:00:46]}  a4 {[%clk 0:01:08]} 23. Nd4 {[%clk 0:00:45]}  axb3 {[%clk 0:01:01]} 24. axb3 {[%clk 0:00:44]}  Nxd4 {[%clk 0:00:57]} 25. cxd4 {[%clk 0:00:43]}  Bxd4 {[%clk 0:00:55]} 26. Bg5 {[%clk 0:00:43]}  Be6 {[%clk 0:00:46]} 27. Bxh4 {[%clk 0:00:40]}  Ra2 {[%clk 0:00:40]} 28. Re2 {[%clk 0:00:25]}  Rea8 {[%clk 0:00:38]} 29. b4 {[%clk 0:00:21]}  Rxe2 {[%clk 0:00:34]} 30. Qxe2 {[%clk 0:00:20]}  Qf4 {[%clk 0:00:34]} 31. Rxc6 {[%clk 0:00:05]}  Qxh4 {[%clk 0:00:32]} 32. b5 {[%clk 0:00:05]}  Ra1 {[%clk 0:00:23]} 33. Rxe6 {[%clk 0:00:02]}  fxe6 {[%clk 0:00:19]} 34. Qxe6+ {[%clk 0:00:03]}  Kh7 {[%clk 0:00:19]} 35. Qd7+ {[%clk 0:00:01]}  Bg7 {[%clk 0:00:19]} 36. Qxd5 {[%clk 0:00:02]}  Qd4 {[%clk 0:00:18]} 37. Qf3 {[%clk 0:00:01]}  Qd1 {[%clk 0:00:14]} 38. Qxd1 {[%clk 0:00:01]}  Rxd1 {[%clk 0:00:14]} 39. g4 {[%clk 0:00:02]}  Rb1 {[%clk 0:00:15]} 40. Kg2 {[%clk 0:00:02]}  Rb2 {[%clk 0:00:14]} 41. h4 {[%clk 0:00:02]}  Bd4 {[%clk 0:00:14]} 42. Kg3 {[%clk 0:00:03]}  Bxf2+ {[%clk 0:00:14]} 43. Kh3 {[%clk 0:00:04]}  Rb3+ {[%clk 0:00:13]} 44. Kg2 {[%clk 0:00:04]}  Bxh4 {[%clk 0:00:13]} 0-1


[Site "https://www.chess.com"]

[Event "Titled Tuesday Blitz August 3 2021"]
[White "Hansen, Sune Berg"]
[Black "Onyshchuk, Volodymyr"]
[WhiteFideId "1400266"]
[BlackFideId "14114038"]
[WhiteElo "2654"]
[BlackElo "2603"]
[Result "0-1"]
[Round "03"]
[TimeControl "180+1"]
[Date "2021.08.03"]
[WhiteClock "0:00:49"]
[BlackClock "0:00:48"]

1. e4 {[%clk 0:03:00]}  e5 {[%clk 0:02:59]} 2. Nf3 {[%clk 0:03:00]}  Nc6 {[%clk 0:03:00]} 3. Bc4 {[%clk 0:03:00]}  Nf6 {[%clk 0:02:59]} 4. d3 {[%clk 0:03:01]}  Bc5 {[%clk 0:02:58]} 5. c3 {[%clk 0:03:00]}  d6 {[%clk 0:02:57]} 6. O-O {[%clk 0:03:00]}  O-O {[%clk 0:02:51]} 7. Re1 {[%clk 0:02:58]}  a5 {[%clk 0:02:51]} 8. Nbd2 {[%clk 0:02:49]}  h6 {[%clk 0:02:45]} 9. Nf1 {[%clk 0:02:46]}  Be6 {[%clk 0:02:44]} 10. Bb5 {[%clk 0:02:45]}  Qb8 {[%clk 0:02:39]} 11. d4 {[%clk 0:02:40]}  Bb6 {[%clk 0:02:34]} 12. d5 {[%clk 0:02:37]}  Na7 {[%clk 0:02:34]} 13. Bd3 {[%clk 0:02:32]}  Bd7 {[%clk 0:02:28]} 14. Ng3 {[%clk 0:02:27]}  Nc8 {[%clk 0:02:26]} 15. h3 {[%clk 0:02:15]}  Qa7 {[%clk 0:02:24]} 16. Rf1 {[%clk 0:02:12]}  Ne7 {[%clk 0:02:23]} 17. c4 {[%clk 0:02:04]}  Bc5 {[%clk 0:01:58]} 18. Nh2 {[%clk 0:01:54]}  g5 {[%clk 0:01:52]} 19. Ng4 {[%clk 0:01:51]}  Nxg4 {[%clk 0:01:46]} 20. hxg4 {[%clk 0:01:51]}  f6 {[%clk 0:01:28]} 21. Nf5 {[%clk 0:01:39]}  Nxf5 {[%clk 0:01:27]} 22. gxf5 {[%clk 0:01:37]}  Kg7 {[%clk 0:01:27]} 23. g4 {[%clk 0:01:25]}  Rh8 {[%clk 0:01:22]} 24. Kg2 {[%clk 0:01:24]}  h5 {[%clk 0:01:19]} 25. gxh5 {[%clk 0:00:58]}  Rh6 {[%clk 0:01:18]} 26. Be2 {[%clk 0:00:55]}  Rah8 {[%clk 0:01:18]} 27. Bg4 {[%clk 0:00:56]}  Be8 {[%clk 0:01:15]} 28. Rh1 {[%clk 0:00:53]}  Bxf2 {[%clk 0:01:13]} 29. Qf3 {[%clk 0:00:51]}  Bd4 {[%clk 0:01:11]} 30. Rb1 {[%clk 0:00:49]}  Bf7 {[%clk 0:00:48]} 0-1


[Site "https://www.chess.com"]

[Event "Titled Tuesday Blitz August 3 2021"]
[White "Hjartarson, Johann"]
[Black "Vasquez Schroeder, Rodrigo"]
[WhiteFideId "2300044"]
[BlackFideId "3400042"]
[WhiteElo "2502"]
[BlackElo "2572"]
[Result "1-0"]
[Round "03"]
[TimeControl "180+1"]
[Date "2021.08.03"]
[WhiteClock "0:00:34"]
[BlackClock "0:00:18"]

1. e4 {[%clk 0:03:00]}  e5 {[%clk 0:02:55]} 2. Nf3 {[%clk 0:03:00]}  Nc6 {[%clk 0:02:55]} 3. Bc4 {[%clk 0:03:00]}  Bc5 {[%clk 0:02:54]} 4. O-O {[%clk 0:02:58]}  Nf6 {[%clk 0:02:53]} 5. d3 {[%clk 0:02:58]}  d6 {[%clk 0:02:52]} 6. Bg5 {[%clk 0:02:57]}  h6 {[%clk 0:02:47]} 7. Bxf6 {[%clk 0:02:55]}  Qxf6 {[%clk 0:02:46]} 8. Nc3 {[%clk 0:02:55]}  O-O {[%clk 0:02:41]} 9. Nd5 {[%clk 0:02:54]}  Qd8 {[%clk 0:02:41]} 10. c3 {[%clk 0:02:54]}  a6 {[%clk 0:02:31]} 11. d4 {[%clk 0:02:51]}  Ba7 {[%clk 0:02:28]} 12. h3 {[%clk 0:02:51]}  Re8 {[%clk 0:02:22]} 13. Re1 {[%clk 0:02:50]}  Be6 {[%clk 0:02:15]} 14. a3 {[%clk 0:02:38]}  Na5 {[%clk 0:02:03]} 15. Ba2 {[%clk 0:02:32]}  c6 {[%clk 0:01:57]} 16. Ne3 {[%clk 0:02:26]}  Bxa2 {[%clk 0:01:50]} 17. Rxa2 {[%clk 0:02:25]}  b5 {[%clk 0:01:46]} 18. b4 {[%clk 0:02:23]}  Nb7 {[%clk 0:01:45]} 19. dxe5 {[%clk 0:02:15]}  dxe5 {[%clk 0:01:45]} 20. Rd2 {[%clk 0:02:15]}  Bxe3 {[%clk 0:01:21]} 21. Rxd8 {[%clk 0:02:07]}  Raxd8 {[%clk 0:01:21]} 22. Qe2 {[%clk 0:02:04]}  Ba7 {[%clk 0:01:20]} 23. c4 {[%clk 0:01:58]}  Nd6 {[%clk 0:01:20]} 24. Nd2 {[%clk 0:01:50]}  Bd4 {[%clk 0:01:18]} 25. c5 {[%clk 0:01:49]}  Nc8 {[%clk 0:01:11]} 26. Nb3 {[%clk 0:01:46]}  Ne7 {[%clk 0:01:09]} 27. Rd1 {[%clk 0:01:43]}  Rd7 {[%clk 0:01:09]} 28. g3 {[%clk 0:01:41]}  Red8 {[%clk 0:01:07]} 29. Kg2 {[%clk 0:01:41]}  g6 {[%clk 0:01:06]} 30. h4 {[%clk 0:01:40]}  h5 {[%clk 0:01:06]} 31. g4 {[%clk 0:01:34]}  hxg4 {[%clk 0:01:05]} 32. Qxg4 {[%clk 0:01:33]}  Kf8 {[%clk 0:01:02]} 33. h5 {[%clk 0:01:32]}  gxh5 {[%clk 0:01:02]} 34. Qxh5 {[%clk 0:01:31]}  Ng6 {[%clk 0:01:03]} 35. Kf1 {[%clk 0:01:23]}  Bc3 {[%clk 0:01:00]} 36. Rxd7 {[%clk 0:01:20]}  Rxd7 {[%clk 0:01:01]} 37. Na5 {[%clk 0:01:14]}  Rd2 {[%clk 0:00:40]} 38. Nxc6 {[%clk 0:01:12]}  Kg7 {[%clk 0:00:38]} 39. Qg4 {[%clk 0:01:01]}  Kf6 {[%clk 0:00:27]} 40. Qf5+ {[%clk 0:00:58]}  Kg7 {[%clk 0:00:26]} 41. Qg5 {[%clk 0:00:49]}  f6 {[%clk 0:00:21]} 42. Qg4 {[%clk 0:00:48]}  Kh6 {[%clk 0:00:19]} 43. Qh3+ {[%clk 0:00:36]}  Kg7 {[%clk 0:00:18]} 44. Qxc3 {[%clk 0:00:34]} 1-0


[Site "https://www.chess.com"]